fUSD/lending_fUSD_20250204
["ID","MTS","AMOUNT","RATE_DAILY","PERIOD"]
[351633784,1738678251128,-276.6,9.344e-05,2]
[351633785,1738678251138,-78.2882467,9.345e-05,2]
[351633786,1738678251147,-500.0,9.345e-05,2]
[351633787,1738678251158,-633.74,9.345e-05,2]
[351633788,1738678251168,-312.08,9.345e-05,2]
[351633789,1738678251178,-387.98576833,9.345e-05,2]
[351633790,1738678251205,-590.2,9.344e-05,2]
[351633791,1738678251215,-112.01423167,9.345e-05,2]
[351633792,1738678251225,-500.0,9.345e-05,2]
[351633793,1738678251238,-500.0,9.345e-05,2]
[351633794,1738678251247,-527.45,9.345e-05,2]
[351633795,1738678251257,-500.0,9.345e-05,2]
[351633796,1738678251267,-500.0,9.345e-05,2]
[351633797,1738678251277,-500.0,9.345e-05,2]
[351633798,1738678251287,-500.0,9.345e-05,2]
[351633799,1738678251298,-334.11,9.345e-05,2]
[351633800,1738678251307,-500.0,9.345e-05,2]
[351633801,1738678251317,-500.0,9.345e-05,2]
[351633802,1738678251327,-415.57116258,9.345e-05,2]
[351633803,1738678251337,-500.0,9.345e-05,2]
[351633804,1738678251346,-500.0,9.345e-05,2]
[351633805,1738678251355,-500.0,9.345e-05,2]
[351633806,1738678251364,-500.3,9.345e-05,2]
[351633807,1738678251373,-500.0,9.345e-05,2]
[351633808,1738678251382,-500.0,9.345e-05,2]
[351633809,1738678251391,-500.0,9.345e-05,2]
[351633810,1738678251406,-500.0,9.345e-05,2]
[351633811,1738678251423,-500.0,9.345e-05,2]
[351633812,1738678251433,-500.0,9.345e-05,2]
[351633813,1738678251443,-500.0,9.345e-05,2]
[351633814,1738678251454,-500.0,9.345e-05,2]
[351633815,1738678251464,-500.0,9.345e-05,2]
[351633816,1738678251475,-628.73,9.345e-05,2]
[351633817,1738678251484,-500.0,9.345e-05,2]
[351633818,1738678251494,-503.15610595,9.345e-05,2]
[351633819,1738678251503,-500.0,9.345e-05,2]
[351633820,1738678251513,-500.0,9.345e-05,2]
[351633821,1738678251523,-500.0,9.345e-05,2]
[351633822,1738678251532,-500.0,9.345e-05,2]
[351633823,1738678251543,-500.0,9.345e-05,2]
[351633824,1738678251563,-500.0,9.345e-05,2]
[351633825,1738678251579,-150.93,9.345e-05,2]
[351633826,1738678251590,-154.16,9.345e-05,2]
[351633827,1738678251600,-498.26,9.345e-05,2]
[351633828,1738678251609,-500.0,9.345e-05,2]
[351633829,1738678251619,-500.0,9.345e-05,2]
[351633830,1738678251629,-500.0,9.345e-05,2]
[351633831,1738678251640,-457.29,9.345e-05,2]
[351633832,1738678251649,-500.0,9.345e-05,2]
[351633833,1738678251659,-372.1,9.345e-05,2]
[351633834,1738678251669,-500.0,9.345e-05,2]
[351633835,1738678251679,-500.0,9.345e-05,2]
[351633836,1738678251689,-500.0,9.345e-05,2]
[351633837,1738678251700,-500.0,9.345e-05,2]
[351633838,1738678251709,-500.0,9.345e-05,2]
[351633839,1738678251719,-500.0,9.345e-05,2]
[351633840,1738678251729,-394.65,9.345e-05,2]
[351633841,1738678251739,-500.0,9.345e-05,2]
[351633842,1738678251748,-500.0,9.345e-05,2]
[351633843,1738678251758,-605.62,9.345e-05,2]
[351633844,1738678251768,-500.0,9.345e-05,2]
[351633845,1738678251778,-500.0,9.345e-05,2]
[351633846,1738678251787,-500.0,9.345e-05,2]
[351633847,1738678251797,-2084.88,9.345e-05,2]
[351633848,1738678251807,-500.0,9.345e-05,2]
[351633849,1738678251818,-262.07,9.345e-05,2]
[351633850,1738678251829,-500.0,9.345e-05,2]
[351633851,1738678251839,-500.0,9.345e-05,2]
[351633852,1738678251848,-500.0,9.345e-05,2]
[351633853,1738678251858,-307.80256134,9.345e-05,2]
[351633854,1738678251868,-500.0,9.345e-05,2]
[351633855,1738678251878,-406.72230884,9.345e-05,2]
[351633856,1738678251888,-500.0,9.345e-05,2]
[351633857,1738678251898,-500.0,9.345e-05,2]
[351633858,1738678251908,-500.0,9.345e-05,2]
[351633859,1738678251918,-500.0,9.345e-05,2]
[351633860,1738678251927,-500.0,9.345e-05,2]
[351633861,1738678251938,-500.0,9.345e-05,2]
[351633862,1738678251950,-500.0,9.345e-05,2]
[351633863,1738678251959,-500.0,9.345e-05,2]
[351633864,1738678251975,-500.0,9.345e-05,2]
[351633865,1738678251999,-500.0,9.345e-05,2]
[351633866,1738678252010,-465.22,9.345e-05,2]
[351633867,1738678252021,-500.0,9.345e-05,2]
[351633868,1738678252033,-301.88,9.345e-05,2]
[351633869,1738678252043,-500.0,9.345e-05,2]
[351633870,1738678252053,-547.04491183,9.345e-05,2]
[351633871,1738678252063,-500.0,9.345e-05,2]
[351633872,1738678252073,-500.0,9.345e-05,2]
[351633873,1738678252083,-500.0,9.345e-05,2]
[351633874,1738678252093,-606.28,9.345e-05,2]
[351633875,1738678252103,-500.0,9.345e-05,2]
[351633876,1738678252113,-500.0,9.345e-05,2]
[351633877,1738678252123,-500.0,9.345e-05,2]
[351633878,1738678252133,-500.0,9.345e-05,2]
[351633879,1738678252142,-500.0,9.345e-05,2]
[351633880,1738678252152,-500.0,9.345e-05,2]
[351633881,1738678252163,-309.01,9.345e-05,2]
[351633882,1738678252172,-500.0,9.345e-05,2]
[351633883,1738678252182,-500.0,9.345e-05,2]
[351633884,1738678252192,-159.01,9.345e-05,2]
[351633885,1738678252204,-500.0,9.345e-05,2]
[351633886,1738678252214,-500.0,9.345e-05,2]
[351633887,1738678252225,-276.62,9.345e-05,2]
[351633888,1738678252238,-500.0,9.345e-05,2]
[351633889,1738678252249,-500.0,9.345e-05,2]
[351633890,1738678252259,-500.0,9.345e-05,2]
[351633891,1738678252271,-500.0,9.345e-05,2]
[351633892,1738678252280,-500.0,9.345e-05,2]
[351633893,1738678252290,-454.44,9.345e-05,2]
[351633894,1738678252300,-500.0,9.345e-05,2]
[351633895,1738678252311,-500.0,9.345e-05,2]
[351633896,1738678252321,-500.0,9.345e-05,2]
[351633897,1738678252331,-506.91733254,9.345e-05,2]
[351633898,1738678252342,-500.0,9.345e-05,2]
[351633899,1738678252352,-500.0,9.345e-05,2]
[351633900,1738678252362,-500.0,9.345e-05,2]
[351633901,1738678252372,-500.0,9.345e-05,2]
[351633902,1738678252382,-500.0,9.345e-05,2]
[351633903,1738678252393,-500.0,9.345e-05,2]
[351633904,1738678252404,-284.63,9.345e-05,2]
[351633905,1738678252414,-500.0,9.345e-05,2]
[351633906,1738678252424,-500.0,9.345e-05,2]
[351633907,1738678252434,-500.0,9.345e-05,2]
[351633908,1738678252447,-173.47,9.345e-05,2]
[351633909,1738678252456,-500.0,9.345e-05,2]
[351633910,1738678252465,-601.6,9.345e-05,2]
[351633911,1738678252476,-500.0,9.345e-05,2]
[351633912,1738678252486,-500.0,9.345e-05,2]
[351633913,1738678252497,-158.67,9.345e-05,2]
[351633914,1738678252507,-500.0,9.345e-05,2]
[351633915,1738678252517,-500.0,9.345e-05,2]
[351633916,1738678252527,-500.0,9.345e-05,2]
[351633917,1738678252537,-500.0,9.345e-05,2]
[351633918,1738678252548,-500.0,9.345e-05,2]
[351633919,1738678252559,-500.0,9.345e-05,2]
[351633920,1738678252569,-500.0,9.345e-05,2]
[351633921,1738678252578,-575.77,9.345e-05,2]
[351633922,1738678252588,-159.22,9.345e-05,2]
[351633923,1738678252598,-500.0,9.345e-05,2]
[351633924,1738678252608,-1490.51,9.345e-05,2]
[351633925,1738678252617,-500.0,9.345e-05,2]
[351633926,1738678252628,-500.0,9.345e-05,2]
[351633927,1738678252638,-500.0,9.345e-05,2]
[351633928,1738678252648,-500.0,9.345e-05,2]
[351633929,1738678252658,-500.0,9.345e-05,2]
[351633930,1738678252668,-500.0,9.345e-05,2]
[351633931,1738678252677,-437.03,9.345e-05,2]
[351633932,1738678252687,-166.52,9.345e-05,2]
[351633933,1738678252700,-500.0,9.345e-05,2]
[351633934,1738678252710,-1229.91,9.345e-05,2]
[351633935,1738678252719,-500.0,9.345e-05,2]
[351633936,1738678252729,-500.0,9.345e-05,2]
[351633937,1738678252739,-500.0,9.345e-05,2]
[351633938,1738678252750,-500.0,9.345e-05,2]
[351633939,1738678252759,-630.26,9.345e-05,2]
[351633940,1738678252770,-476.1,9.345e-05,2]
[351633941,1738678252780,-734.59,9.345e-05,2]
[351633942,1738678252789,-610.27,9.345e-05,2]
[351633943,1738678252799,-272.75,9.345e-05,2]
[351633944,1738678252809,-500.0,9.345e-05,2]
[351633945,1738678252818,-886.45,9.345e-05,2]
[351633946,1738678252828,-545.9,9.345e-05,2]
[351633947,1738678252838,-500.0,9.345e-05,2]
[351633948,1738678252847,-500.0,9.345e-05,2]
[351633949,1738678252857,-294.77,9.345e-05,2]
[351633950,1738678252867,-500.0,9.345e-05,2]
[351633951,1738678252875,-465.66,9.345e-05,2]
[351633952,1738678252884,-500.0,9.345e-05,2]
[351633953,1738678252893,-506.46,9.345e-05,2]
[351633954,1738678252902,-500.0,9.345e-05,2]
[351633955,1738678252911,-500.0,9.345e-05,2]
[351633956,1738678252920,-500.0,9.345e-05,2]
[351633957,1738678252929,-500.0,9.345e-05,2]
[351633958,1738678252938,-500.0,9.345e-05,2]
[351633959,1738678252950,-500.0,9.345e-05,2]
[351633960,1738678252958,-500.0,9.345e-05,2]
[351633961,1738678252967,-187.97,9.345e-05,2]
[351633962,1738678252975,-500.0,9.345e-05,2]
[351633963,1738678252984,-500.0,9.345e-05,2]
[351633964,1738678252993,-151.88,9.345e-05,2]
[351633965,1738678253003,-500.0,9.345e-05,2]
[351633966,1738678253012,-500.0,9.345e-05,2]
[351633967,1738678253021,-584.54,9.345e-05,2]
[351633968,1738678253031,-500.0,9.345e-05,2]
[351633969,1738678253040,-225.88,9.345e-05,2]
[351633970,1738678253050,-463.28,9.345e-05,2]
[351633971,1738678253059,-502.75,9.345e-05,2]
[351633972,1738678253069,-500.0,9.345e-05,2]
[351633973,1738678253079,-500.0,9.345e-05,2]
[351633974,1738678253089,-278.66,9.345e-05,2]
[351633975,1738678253098,-500.0,9.345e-05,2]
[351633976,1738678253108,-500.0,9.345e-05,2]
[351633977,1738678253117,-500.0,9.345e-05,2]
[351633978,1738678253127,-500.0,9.345e-05,2]
[351633979,1738678253136,-500.0,9.345e-05,2]
[351633980,1738678253146,-555.23,9.345e-05,2]
[351633981,1738678253156,-500.0,9.345e-05,2]
[351633982,1738678253166,-500.0,9.345e-05,2]
[351633983,1738678253175,-500.0,9.345e-05,2]
[351633984,1738678253184,-567.98,9.345e-05,2]
[351633985,1738678253195,-500.0,9.345e-05,2]
[351633986,1738678253205,-500.0,9.345e-05,2]
[351633987,1738678253214,-1000.0,9.348e-05,2]
[351633988,1738678253224,-500.0,9.373e-05,2]
[351633989,1738678253235,-368.83,9.373e-05,2]
[351633990,1738678253246,-159.73,9.373e-05,2]
[351633991,1738678253255,-626.85291036,9.373e-05,2]
[351633992,1738678253265,-500.0,9.373e-05,2]
[351633993,1738678253275,-500.0,9.373e-05,2]
[351633994,1738678253285,-500.0,9.373e-05,2]
[351633995,1738678253294,-555.02,9.373e-05,2]
[351633996,1738678253303,-500.0,9.373e-05,2]
[351633997,1738678253314,-587.88,9.373e-05,2]
[351633998,1738678253324,-500.0,9.373e-05,2]
[351633999,1738678253335,-500.0,9.373e-05,2]
[351634000,1738678253345,-500.0,9.373e-05,2]
[351634001,1738678253355,-500.0,9.373e-05,2]
[351634002,1738678253364,-500.0,9.373e-05,2]
[351634003,1738678253377,-500.0,9.373e-05,2]
[351634004,1738678253389,-151.46,9.373e-05,2]
[351634005,1738678253403,-367.7,9.373e-05,2]
[351634006,1738678253417,-192.37,9.373e-05,2]
[351634007,1738678253430,-497.42170741,9.373e-05,2]
[351634008,1738678253441,-517.18456396,9.373e-05,2]
[351634009,1738678253455,-500.0,9.373e-05,2]
[351634010,1738678253467,-500.0,9.373e-05,2]
[351634011,1738678253480,-539.18351468,9.373e-05,2]
[351634012,1738678253493,-500.0,9.373e-05,2]
[351634013,1738678253506,-554.02,9.373e-05,2]
[351634014,1738678253519,-500.0,9.373e-05,2]
[351634015,1738678253531,-500.0,9.373e-05,2]
[351634016,1738678253543,-500.0,9.373e-05,2]
[351634017,1738678253555,-500.0,9.373e-05,2]
[351634018,1738678253566,-500.0,9.373e-05,2]
[351634019,1738678253577,-500.0,9.373e-05,2]
[351634020,1738678253587,-500.0,9.373e-05,2]
[351634021,1738678253600,-277.91,9.373e-05,2]
[351634022,1738678253612,-1454.54,9.373e-05,2]
[351634023,1738678253625,-500.0,9.373e-05,2]
[351634024,1738678253637,-191.86,9.373e-05,2]
[351634025,1738678253649,-500.0,9.373e-05,2]
[351634026,1738678253661,-821.86,9.373e-05,2]
[351634027,1738678253676,-500.0,9.373e-05,2]
[351634028,1738678253698,-764.43,9.373e-05,2]
[351634029,1738678253716,-500.0,9.373e-05,2]
[351634030,1738678253731,-500.0,9.373e-05,2]
[351634031,1738678253743,-500.0,9.373e-05,2]
[351634032,1738678253757,-500.0,9.373e-05,2]
[351634033,1738678253770,-500.0,9.373e-05,2]
[351634034,1738678253783,-500.0,9.373e-05,2]
[351634035,1738678253796,-500.0,9.373e-05,2]
[351634036,1738678253809,-500.0,9.373e-05,2]
[351634037,1738678253821,-599.56517777,9.373e-05,2]
[351634038,1738678253832,-500.0,9.373e-05,2]
[351634039,1738678253845,-500.0,9.373e-05,2]
[351634040,1738678253857,-399.57,9.373e-05,2]
[351634041,1738678253871,-500.0,9.373e-05,2]
[351634042,1738678253882,-500.0,9.373e-05,2]
[351634043,1738678253901,-500.0,9.373e-05,2]
[351634044,1738678253913,-190.66,9.382e-05,2]
[351634045,1738678253923,-500.0,9.481e-05,2]
[351634046,1738678253933,-500.0,9.481e-05,2]
[351634047,1738678253945,-535.88,9.481e-05,2]
[351634048,1738678253955,-500.0,9.481e-05,2]
[351634049,1738678253969,-840.73,9.481e-05,2]
[351634050,1738678253983,-500.0,9.481e-05,2]
[351634051,1738678253994,-500.0,9.481e-05,2]
[351634052,1738678254005,-500.0,9.481e-05,2]
[351634053,1738678254016,-604.89,9.481e-05,2]
[351634054,1738678254025,-415.757811,9.481e-05,2]
[351634055,1738678254036,-500.0,9.481e-05,2]
[351634056,1738678254048,-500.0,9.481e-05,2]
[351634057,1738678254061,-500.0,9.481e-05,2]
[351634058,1738678254073,-500.0,9.481e-05,2]
[351634059,1738678254085,-500.0,9.481e-05,2]
[351634060,1738678254096,-441.357191,9.481e-05,2]
[351634061,1738678254107,-500.0,9.481e-05,2]
[351634062,1738678254117,-500.0,9.481e-05,2]
[351634063,1738678254128,-716.77,9.481e-05,2]
[351634064,1738678254139,-500.0,9.481e-05,2]
[351634065,1738678254150,-534.28,9.481e-05,2]
[351634066,1738678254161,-500.0,9.481e-05,2]
[351634067,1738678254177,-883.45,9.481e-05,2]
[351634068,1738678254201,-500.0,9.481e-05,2]
[351634069,1738678254214,-577.07,9.481e-05,2]
[351634070,1738678254226,-772.3,9.481e-05,2]
[351634071,1738678254241,-500.0,9.481e-05,2]
[351634072,1738678254252,-500.0,9.481e-05,2]
[351634073,1738678254264,-510.67,9.481e-05,2]
[351634074,1738678254275,-525.38,9.481e-05,2]
[351634075,1738678254290,-1213.68,9.481e-05,2]
[351634076,1738678254300,-643.49,9.481e-05,2]
[351634077,1738678254312,-889.28,9.481e-05,2]
[351634078,1738678254323,-3141.05,9.481e-05,2]
[351634079,1738678254335,-1039.76,9.481e-05,2]
[351634080,1738678254345,-848.89,9.481e-05,2]
[351634081,1738678254356,-1000.0,9.481e-05,2]
[351634082,1738678254367,-500.0,9.481e-05,2]
[351634083,1738678254378,-500.0,9.481e-05,2]
[351634084,1738678254389,-1510.57,9.481e-05,2]
[351634085,1738678254400,-603.64,9.481e-05,2]
[351634086,1738678254411,-500.0,9.481e-05,2]
[351634087,1738678254422,-500.0,9.481e-05,2]
[351634088,1738678254433,-1294.75,9.481e-05,2]
[351634089,1738678254444,-500.0,9.481e-05,2]
[351634090,1738678254457,-500.0,9.481e-05,2]
[351634091,1738678254468,-653.47,9.481e-05,2]
[351634092,1738678254479,-500.0,9.481e-05,2]
[351634093,1738678254491,-1282.24,9.481e-05,2]
[351634094,1738678254501,-640.96,9.481e-05,2]
[351634095,1738678254513,-811.36,9.481e-05,2]
[351634096,1738678254524,-586.57,9.481e-05,2]
[351634097,1738678254535,-622.97,9.481e-05,2]
[351634098,1738678254546,-838.62,9.481e-05,2]
[351634099,1738678254556,-632.17,9.481e-05,2]
[351634100,1738678254568,-697.35,9.481e-05,2]
[351634101,1738678254579,-500.0,9.481e-05,2]
[351634102,1738678254590,-500.0,9.481e-05,2]
[351634103,1738678254601,-649.13,9.481e-05,2]
[351634104,1738678254612,-846.6,9.481e-05,2]
[351634105,1738678254623,-1244.4,9.481e-05,2]
[351634106,1738678254634,-1584.94,9.481e-05,2]
[351634107,1738678254645,-636.76,9.481e-05,2]
[351634108,1738678254656,-929.28,9.481e-05,2]
[351634109,1738678254667,-964.43,9.481e-05,2]
[351634110,1738678254678,-500.0,9.481e-05,2]
[351634111,1738678254688,-1248.54,9.481e-05,2]
[351634112,1738678254701,-680.81,9.481e-05,2]
[351634113,1738678254712,-1821.81,9.481e-05,2]
[351634114,1738678254722,-500.0,9.481e-05,2]
[351634115,1738678254733,-500.0,9.481e-05,2]
[351634116,1738678254744,-500.0,9.481e-05,2]
[351634117,1738678254755,-500.0,9.481e-05,2]
[351634118,1738678254766,-548.58,9.481e-05,2]
[351634119,1738678254777,-500.0,9.481e-05,2]
[351634120,1738678254787,-500.0,9.481e-05,2]
[351634121,1738678254798,-701.96,9.481e-05,2]
[351634122,1738678254809,-501.42,9.481e-05,2]
[351634123,1738678254819,-500.0,9.481e-05,2]
[351634124,1738678254831,-500.0,9.481e-05,2]
[351634125,1738678254841,-500.0,9.481e-05,2]
[351634126,1738678254852,-1341.61,9.481e-05,2]
[351634127,1738678254862,-500.0,9.481e-05,2]
[351634128,1738678254873,-500.0,9.481e-05,2]
[351634129,1738678254884,-500.0,9.482e-05,2]
[351634130,1738678254895,-500.0,9.482e-05,2]
[351634131,1738678254906,-500.0,9.482e-05,2]
[351634132,1738678254918,-500.0,9.482e-05,2]
[351634133,1738678254930,-500.0,9.482e-05,2]
[351634134,1738678254941,-717.16,9.482e-05,2]
[351634135,1738678254958,-208.95,9.482e-05,2]
[351634136,1738678254969,-389.49,9.482e-05,2]
[351634137,1738678254981,-500.0,9.482e-05,2]
[351634138,1738678254993,-500.0,9.482e-05,2]
[351634139,1738678255004,-500.0,9.482e-05,2]
[351634140,1738678255015,-154.28,9.482e-05,2]
[351634141,1738678255026,-500.0,9.482e-05,2]
[351634142,1738678255037,-500.0,9.482e-05,2]
[351634143,1738678255048,-500.0,9.482e-05,2]
[351634144,1738678255059,-461.75,9.482e-05,2]
[351634145,1738678255070,-640.53904601,9.482e-05,2]
[351634146,1738678255080,-500.0,9.482e-05,2]
[351634147,1738678255091,-500.0,9.482e-05,2]
[351634148,1738678255101,-500.0,9.482e-05,2]
[351634149,1738678255112,-167.34,9.482e-05,2]
[351634150,1738678255122,-527.45,9.482e-05,2]
[351634151,1738678255133,-500.0,9.482e-05,2]
[351634152,1738678255144,-199.36,9.482e-05,2]
[351634153,1738678255156,-500.0,9.482e-05,2]
[351634154,1738678255166,-500.0,9.482e-05,2]
[351634155,1738678255177,-419.27,9.482e-05,2]
[351634156,1738678255188,-500.0,9.482e-05,2]
[351634157,1738678255202,-326.36,9.482e-05,2]
[351634158,1738678255213,-500.0,9.482e-05,2]
[351634159,1738678255224,-500.0,9.482e-05,2]
[351634160,1738678255236,-365.65,9.482e-05,2]
[351634161,1738678255248,-500.0,9.482e-05,2]
[351634162,1738678255259,-500.0,9.482e-05,2]
[351634163,1738678255270,-257.0,9.482e-05,2]
[351634164,1738678255283,-422.15,9.482e-05,2]
[351634165,1738678255294,-613.9,9.482e-05,2]
[351634166,1738678255304,-247.66,9.482e-05,2]
[351634167,1738678255315,-296.35,9.482e-05,2]
[351634168,1738678255327,-500.0,9.482e-05,2]
[351634169,1738678255338,-500.0,9.482e-05,2]
[351634170,1738678255349,-500.0,9.482e-05,2]
[351634171,1738678255360,-500.0,9.482e-05,2]
[351634172,1738678255372,-436.28,9.482e-05,2]
[351634173,1738678255383,-500.0,9.482e-05,2]
[351634174,1738678255395,-286.64,9.482e-05,2]
[351634175,1738678255407,-500.0,9.482e-05,2]
[351634176,1738678255418,-2084.88,9.482e-05,2]
[351634177,1738678255430,-245.07386825,9.482e-05,2]
[351634178,1738678255442,-500.0,9.482e-05,2]
[351634179,1738678255456,-500.0,9.482e-05,2]
[351634180,1738678255468,-491.26019901,9.482e-05,2]
[351634181,1738678255479,-500.0,9.482e-05,2]
[351634182,1738678255490,-251.26,9.482e-05,2]
[351634183,1738678255502,-500.0,9.482e-05,2]
[351634184,1738678255513,-500.0,9.482e-05,2]
[351634185,1738678255524,-384.6,9.482e-05,2]
[351634186,1738678255536,-236.43,9.482e-05,2]
[351634187,1738678255547,-500.0,9.482e-05,2]
[351634188,1738678255559,-244.35,9.482e-05,2]
[351634189,1738678255570,-500.0,9.482e-05,2]
[351634190,1738678255581,-500.0,9.482e-05,2]
[351634191,1738678255591,-549.85,9.482e-05,2]
[351634192,1738678255602,-500.0,9.482e-05,2]
[351634193,1738678255613,-500.0,9.482e-05,2]
[351634194,1738678255624,-500.0,9.482e-05,2]
[351634195,1738678255634,-500.0,9.482e-05,2]
[351634196,1738678255644,-500.0,9.482e-05,2]
[351634197,1738678255655,-500.0,9.482e-05,2]
[351634198,1738678255665,-500.0,9.482e-05,2]
[351634199,1738678255676,-500.0,9.482e-05,2]
[351634200,1738678255687,-500.0,9.482e-05,2]
[351634201,1738678255699,-500.0,9.482e-05,2]
[351634202,1738678255710,-570.04,9.482e-05,2]
[351634203,1738678255720,-500.0,9.482e-05,2]
[351634204,1738678255731,-493.74,9.482e-05,2]
[351634205,1738678255741,-500.0,9.482e-05,2]
[351634206,1738678255752,-500.0,9.482e-05,2]
[351634207,1738678255762,-500.0,9.482e-05,2]
[351634208,1738678255772,-500.0,9.482e-05,2]
[351634209,1738678255783,-500.0,9.482e-05,2]
[351634210,1738678255794,-500.0,9.482e-05,2]
[351634211,1738678255804,-500.0,9.482e-05,2]
[351634212,1738678255815,-500.0,9.482e-05,2]
[351634213,1738678255827,-500.0,9.482e-05,2]
[351634214,1738678255837,-374.82953804,9.482e-05,2]
[351634215,1738678255846,-500.0,9.482e-05,2]
[351634216,1738678255855,-500.0,9.482e-05,2]
[351634217,1738678255864,-500.0,9.482e-05,2]
[351634218,1738678255873,-500.0,9.482e-05,2]
[351634219,1738678255883,-500.0,9.482e-05,2]
[351634220,1738678255892,-601.2,9.482e-05,2]
[351634221,1738678255901,-500.0,9.482e-05,2]
[351634222,1738678255910,-500.0,9.482e-05,2]
[351634223,1738678255919,-500.0,9.482e-05,2]
[351634224,1738678255928,-500.0,9.482e-05,2]
[351634225,1738678255938,-295.49,9.482e-05,2]
[351634226,1738678255947,-500.0,9.482e-05,2]
[351634227,1738678255956,-575.77,9.482e-05,2]
[351634228,1738678255967,-623.29,9.482e-05,2]
[351634229,1738678255976,-1490.51,9.482e-05,2]
[351634230,1738678255985,-500.0,9.482e-05,2]
[351634231,1738678255994,-500.0,9.482e-05,2]
[351634232,1738678256004,-500.0,9.482e-05,2]
[351634233,1738678256014,-576.63,9.482e-05,2]
[351634234,1738678256035,-271.24,9.482e-05,2]
[351634235,1738678256054,-500.0,9.482e-05,2]
[351634236,1738678256071,-1229.91,9.482e-05,2]
[351634237,1738678256081,-500.0,9.482e-05,2]
[351634238,1738678256092,-500.0,9.482e-05,2]
[351634239,1738678256103,-734.59,9.482e-05,2]
[351634240,1738678256114,-500.0,9.482e-05,2]
[351634241,1738678256505,-886.45,9.482e-05,2]
[351634242,1738678256529,-500.0,9.482e-05,2]
[351634243,1738678256545,-500.0,9.482e-05,2]
[351634244,1738678256554,-500.0,9.482e-05,2]
[351634245,1738678256564,-500.0,9.482e-05,2]
[351634246,1738678256574,-500.0,9.482e-05,2]
[351634247,1738678256584,-573.33,9.482e-05,2]
[351634248,1738678256593,-500.0,9.482e-05,2]
[351634249,1738678256603,-500.0,9.482e-05,2]
[351634250,1738678256612,-500.0,9.482e-05,2]
[351634251,1738678256622,-500.0,9.482e-05,2]
[351634252,1738678256631,-500.0,9.482e-05,2]
[351634253,1738678256640,-500.0,9.482e-05,2]
[351634254,1738678256650,-500.0,9.482e-05,2]
[351634255,1738678256659,-500.0,9.482e-05,2]
[351634256,1738678256668,-500.0,9.482e-05,2]
[351634257,1738678256678,-594.63,9.482e-05,2]
[351634258,1738678256687,-385.64,9.482e-05,2]
[351634259,1738678256699,-500.0,9.482e-05,2]
[351634260,1738678256708,-555.23,9.482e-05,2]
[351634261,1738678256718,-500.0,9.482e-05,2]
[351634262,1738678256727,-567.98,9.482e-05,2]
[351634263,1738678256737,-500.0,9.482e-05,2]
[351634264,1738678256746,-500.0,9.482e-05,2]
[351634265,1738678256756,-300.0,9.5e-05,3]
[351634266,1738678256766,-154.34,9.51e-05,2]
[351634267,1738678256775,-500.0,9.51e-05,2]
[351634268,1738678256784,-449.92,9.51e-05,2]
[351634269,1738678256794,-500.0,9.51e-05,2]
[351634270,1738678256803,-421.95,9.51e-05,2]
[351634271,1738678256812,-500.0,9.51e-05,2]
[351634272,1738678256822,-500.0,9.51e-05,2]
[351634273,1738678256831,-217.48,9.51e-05,2]
[351634274,1738678256840,-428.34,9.51e-05,2]
[351634275,1738678256850,-1454.54,9.51e-05,2]
[351634276,1738678256859,-201.82,9.51e-05,2]
[351634277,1738678256868,-821.86,9.51e-05,2]
[351634278,1738678256877,-500.0,9.51e-05,2]
[351634279,1738678256887,-764.43,9.51e-05,2]
[351634280,1738678256897,-500.0,9.51e-05,2]
[351634281,1738678256906,-500.0,9.51e-05,2]
[351634282,1738678256915,-271.5,9.51e-05,2]
[351634283,1738678256925,-500.0,9.51e-05,2]